bitfinex/quotes_BTCUSD_20250313
["timestamp","ask_amount","ask_price","bid_price","bid_amount"]
[1741887793772,0.249196,80258.0,80253.0,0.0001688]
[1741887793998,0.11970099,80259.0,80253.0,0.0041688]
[1741887794182,0.2492,80257.0,80253.0,0.0041688]
[1741887794337,0.2492,80257.0,80250.0,0.249258]
[1741887794521,0.2492,80257.0,80253.0,0.004]
[1741887794784,0.249223,80250.0,80241.0,0.26171]
[1741887794994,0.249208,80254.0,80243.0,0.2618729]
[1741887795210,0.13247037,80259.0,80252.0,0.01246]
[1741887795591,0.249205,80255.0,80247.0,0.249229]
[1741887795767,0.02294061,80258.0,80253.0,0.004]
[1741887795953,0.249203,80256.0,80253.0,0.004]
[1741887796150,0.02294061,80258.0,80253.0,0.01246]
[1741887796309,0.27213761,80258.0,80253.0,0.003]
[1741887796515,0.02294061,80258.0,80257.0,0.012459]
[1741887796717,0.02294061,80258.0,80257.0,0.261658]
[1741887796929,0.02294061,80258.0,80251.0,0.01246]
[1741887796930,0.249126,80281.0,80269.0,0.012458]
[1741887797130,0.01951428,80282.0,80277.0,0.012456]
[1741887797337,0.01951428,80282.0,80280.0,0.012456]
[1741887797540,0.261543,80293.0,80275.0,0.249141]
[1741887797741,0.249131,80279.0,80273.0,0.249149]
[1741887797988,0.249137,80277.0,80271.0,0.012457]
[1741887798243,0.249137,80277.0,80263.0,0.261639]
[1741887798419,0.249157,80271.0,80264.0,0.012458]
[1741887798617,0.249133,80279.0,80270.0,0.012457]
[1741887798819,0.249133,80279.0,80271.0,0.012457]
[1741887799021,0.000338,80280.0,80275.0,0.249143]
[1741887799182,0.02294129,80278.0,80274.0,0.012457]
[1741887799790,0.02294129,80278.0,80276.0,0.012457]
[1741887800399,0.01951141,80279.0,80276.0,0.012457]
[1741887800793,0.01951141,80279.0,80275.0,0.2616]
[1741887801023,0.01951141,80279.0,80277.0,0.261593]
[1741887801600,0.01951141,80279.0,80278.0,0.012456]
[1741887803064,0.01951141,80279.0,80278.0,0.018456]
[1741887804625,0.26864241,80279.0,80278.0,0.006]
[1741887804830,0.28109841,80279.0,80278.0,0.006]
[1741887805054,0.36883199,80279.0,80278.0,0.006]
[1741887805715,0.38128799,80279.0,80278.0,0.006]
[1741887805869,0.249169,80267.0,80258.0,0.967339]
[1741887806189,0.249171,80266.0,80259.0,0.012459]
[1741887806391,0.12125843,80265.0,80258.0,0.791]
[1741887806589,0.11970099,80265.0,80253.0,0.000169]
[1741887806804,0.000338,80280.0,80279.0,0.012456]
[1741887807825,0.249146,80274.0,80266.0,0.012458]
[1741887808028,0.000338,80280.0,80266.0,0.012458]
[1741887808029,0.249137,80278.0,80268.0,0.012458]
[1741887808230,0.249137,80278.0,80273.0,0.012457]
[1741887808435,0.249137,80278.0,80268.0,0.012458]
[1741887808436,0.249137,80277.0,80270.0,0.249159]
[1741887808654,0.01951139,80279.0,80271.0,0.249155]
[1741887809035,0.249141,80276.0,80271.0,0.249155]
[1741887809269,0.01951139,80279.0,80276.0,0.012457]
[1741887809473,0.01951139,80279.0,80276.0,0.261594]
[1741887809705,0.01951139,80279.0,80272.0,0.249152]
[1741887809853,0.11970099,80278.0,80270.0,0.004]
[1741887810095,0.01951139,80279.0,80277.0,0.012456]
[1741887810297,0.249147,80274.0,80268.0,0.26162]
[1741887810518,0.249147,80274.0,80266.0,0.261628]
[1741887810825,0.249153,80272.0,80267.0,0.012458]
[1741887811027,0.249147,80274.0,80268.0,0.261623]
[1741887811269,0.249156,80271.0,80264.0,0.249174]
[1741887811473,0.012456,80277.0,80264.0,0.261635]
[1741887811855,0.24914,80276.0,80270.0,0.249157]
[1741887812178,0.24914,80276.0,80270.0,0.252157]
[1741887812421,0.0795,80274.0,80253.0,0.000169]
[1741887812608,0.261668,80254.0,80253.0,0.000169]
[1741887812823,0.249203,80256.0,80253.0,0.000169]
[1741887813024,0.26374885,80254.0,80253.0,0.000169]
[1741887813234,0.01951,80270.0,80253.0,0.000169]
[1741887813445,0.249162,80269.0,80261.0,0.249185]
[1741887813657,0.01951,80270.0,80264.0,0.012458]
[1741887813864,0.01951,80270.0,80267.0,0.261626]
[1741887814045,0.01951,80270.0,80268.0,1.5]
[1741887814284,0.01951,80270.0,80269.0,0.26162]
[1741887815005,0.01951,80270.0,80267.0,0.012458]
[1741887815216,0.01951,80270.0,80267.0,0.261626]
[1741887816319,0.01951,80270.0,80267.0,0.264626]
[1741887816532,0.01951,80270.0,80269.0,0.012458]
[1741887816856,0.01951,80270.0,80267.0,0.267626]
[1741887817238,0.01951,80270.0,80267.0,0.006]
[1741887817425,0.01951,80270.0,80268.0,0.012458]
[1741887817632,0.01951,80270.0,80269.0,0.249162]
[1741887817836,0.01951,80270.0,80269.0,0.26462]
[1741887818189,0.249141,80276.0,80269.0,0.26462]
[1741887818392,0.000338,80280.0,80275.0,0.261599]
[1741887818595,0.000338,80280.0,80279.0,0.261587]
[1741887819425,0.000338,80280.0,80279.0,0.249131]
[1741887819771,0.000338,80280.0,80279.0,0.261587]
[1741887820198,0.000338,80280.0,80279.0,0.262587]
[1741887820388,0.000338,80280.0,80279.0,0.84876799]
[1741887820601,0.000338,80280.0,80279.0,0.84776799]
[1741887820927,0.000338,80280.0,80279.0,0.84876799]
[1741887821443,0.000338,80280.0,80279.0,0.85176799]
[1741887821747,0.000338,80280.0,80279.0,0.84876799]
[1741887821899,0.000338,80280.0,80279.0,0.85376799]
[1741887822099,0.000338,80280.0,80279.0,0.85276799]
[1741887822504,0.000338,80280.0,80279.0,0.85876799]
[1741887822979,0.000338,80280.0,80279.0,2.35876799]
[1741887825726,0.000338,80280.0,80279.0,2.35776799]
[1741887828782,1e-06,80280.0,80279.0,2.35776799]
[1741887829212,1e-06,80280.0,80279.0,2.40776799]
[1741887829416,1e-06,80280.0,80279.0,2.39676799]
[1741887829617,1e-06,80280.0,80279.0,2.35276799]
[1741887830329,1e-06,80280.0,80279.0,2.39676799]
[1741887831537,1e-06,80280.0,80279.0,2.40276799]
[1741887832117,1e-06,80280.0,80279.0,2.40876799]
[1741887832317,1e-06,80280.0,80279.0,2.24228799]
[1741887832520,0.000338,80345.0,80339.0,0.012447]
[1741887832727,0.35882667,80340.0,80327.0,0.803209]
[1741887832928,0.10988167,80340.0,80327.0,0.79076]
[1741887833277,0.248976,80329.0,80327.0,0.79076]
[1741887833483,0.261424,80329.0,80328.0,1.5]
[1741887833904,0.248994,80323.0,80312.0,0.012451]
[1741887834072,0.248994,80323.0,80315.0,0.01245]
[1741887834276,0.248994,80323.0,80316.0,0.01245]
[1741887834277,0.248997,80323.0,80316.0,0.01245]
[1741887834592,0.249,80322.0,80316.0,0.01245]
[1741887834917,0.249,80322.0,80316.0,0.261463]
[1741887835116,0.248986,80326.0,80318.0,0.01245]
[1741887835317,0.248997,80323.0,80318.0,0.01245]
[1741887835577,0.248997,80323.0,80317.0,0.24901]
[1741887836081,0.00551635,80322.0,80317.0,0.24901]
[1741887836490,0.00551635,80322.0,80319.0,0.249006]
[1741887836705,0.00551635,80322.0,80318.0,0.002]
[1741887836902,0.248992,80324.0,80317.0,0.26146]
[1741887837211,0.00569407,80321.0,80318.0,0.261457]
[1741887837366,0.11970099,80329.0,80321.0,0.01245]
[1741887837572,0.00569407,80320.0,80318.0,0.01245]
[1741887837769,0.248994,80324.0,80319.0,0.004]
[1741887838580,0.249002,80321.0,80319.0,0.004]
[1741887838960,0.249007,80319.0,80318.0,0.003]
[1741887839167,0.249017,80316.0,80310.0,0.425123]
[1741887839366,0.249017,80316.0,80310.0,0.16364]
[1741887839367,0.249022,80314.0,80310.0,0.16364]
[1741887839568,0.249021,80315.0,80310.0,0.425123]
[1741887839774,0.05,80352.0,80310.0,0.425123]
[1741887839775,0.248982,80327.0,80315.0,0.249017]
[1741887840019,0.248995,80323.0,80314.0,0.261471]
[1741887840272,0.248995,80323.0,80318.0,0.007]
[1741887840473,0.249,80322.0,80318.0,0.004]
[1741887840649,0.11970099,80326.0,80308.0,0.012452]
[1741887840853,0.012448,80330.0,80182.0,1.5]
[1741887840854,0.012451,80311.0,80310.0,0.004]
[1741887841052,0.14824962,80311.0,80310.0,0.004]
[1741887841279,0.43579862,80311.0,80284.0,0.7906]
[1741887841454,0.249112,80285.0,80284.0,0.7906]
[1741887841990,0.249068,80300.0,80294.0,0.012454]
[1741887842191,0.0485,80317.0,80289.0,0.012455]
[1741887842192,0.249075,80297.0,80289.0,0.012455]
[1741887842344,0.249101,80289.0,80284.0,0.7906]
[1741887842551,0.249109,80287.0,80284.0,0.7906]
[1741887842771,0.2491,80289.0,80284.0,1.039714]
[1741887842969,0.249098,80290.0,80284.0,1.052169]
[1741887843299,0.249093,80292.0,80286.0,0.261561]
[1741887843676,0.249093,80292.0,80284.0,0.803055]
[1741887843677,0.249112,80285.0,80284.0,0.7956]
[1741887843832,0.249112,80285.0,80284.0,0.7906]
[1741887844582,0.2547297,80285.0,80284.0,0.7956]
[1741887844899,0.2547297,80285.0,80284.0,0.005]
[1741887845262,0.2547297,80285.0,80284.0,0.009]
[1741887845666,0.2547297,80285.0,80284.0,0.005]
[1741887845861,0.2547297,80285.0,80284.0,0.008]
[1741887846289,0.2547297,80285.0,80284.0,0.003]
[1741887846664,0.2547297,80285.0,80284.0,0.009]
[1741887847225,0.2547297,80285.0,80284.0,0.003]
[1741887847542,0.2550677,80285.0,80284.0,0.007]
[1741887848414,0.0059557,80285.0,80284.0,0.007]
[1741887848787,0.0059557,80285.0,80284.0,0.019455]
[1741887848988,0.000338,80285.0,80284.0,0.019455]
[1741887850983,0.000338,80285.0,80284.0,1.519455]
[1741887851165,0.24945,80285.0,80284.0,0.007]
[1741887851399,0.26738895,80285.0,80284.0,0.007]
[1741887851582,0.25493395,80285.0,80284.0,0.007]
[1741887852226,0.40163079,80285.0,80284.0,0.007]
[1741887852623,0.39614684,80285.0,80284.0,0.007]
[1741887853212,0.000338,80285.0,80284.0,0.007]
[1741887855077,0.012456,80282.0,80279.0,0.000169]
[1741887855244,0.249128,80280.0,80279.0,0.000169]
[1741887855866,0.261584,80280.0,80279.0,0.000169]
[1741887856063,0.249128,80280.0,80279.0,0.000169]
[1741887856290,0.244128,80280.0,80279.0,0.000169]
[1741887856615,0.36382899,80280.0,80279.0,0.000169]
[1741887856834,0.36382899,80280.0,80279.0,0.003169]
[1741887857031,0.36382899,80280.0,80279.0,0.005169]
[1741887858640,0.012793,80285.0,80279.0,0.017625]
[1741887858641,0.249451,80285.0,80279.0,0.017625]
[1741887858847,0.000338,80285.0,80282.0,0.012456]
[1741887859043,0.000338,80285.0,80283.0,0.249116]
[1741887859248,0.000338,80285.0,80283.0,0.261571]
[1741887859447,0.000338,80285.0,80282.0,0.012456]
[1741887859647,0.249127,80281.0,80279.0,0.002169]
[1741887859790,0.249127,80281.0,80279.0,0.000169]
[1741887859988,0.249127,80281.0,80279.0,0.002169]
[1741887860674,0.000338,80285.0,80279.0,0.002169]
[1741887860827,0.000338,80285.0,80283.0,0.001]
[1741887861022,0.000338,80285.0,80283.0,0.0011689]
[1741887861737,0.000338,80285.0,80284.0,0.41970099]
[1741887862158,0.000338,80285.0,80284.0,0.43742669]
[1741887862710,0.000338,80285.0,80284.0,0.45714208]
[1741887862875,0.000338,80285.0,80284.0,2.11934208]
[1741887863086,0.000338,80285.0,80284.0,2.10661638]
[1741887863307,0.000338,80285.0,80284.0,0.1682]
[1741887863715,0.000338,80285.0,80284.0,0.1742]
[1741887863916,0.000338,80285.0,80284.0,0.1682]
[1741887864121,0.00584868,80285.0,80284.0,0.1682]
[1741887864402,0.00584868,80285.0,80284.0,0.1742]
[1741887864532,0.00584868,80285.0,80284.0,0.1682]
[1741887864732,0.00584868,80285.0,80284.0,0.012]
[1741887865335,0.00584868,80285.0,80284.0,0.006]
[1741887865694,0.249115,80284.0,80283.0,0.0001689]
[1741887866238,0.25462568,80284.0,80283.0,0.0001689]
[1741887867307,0.25462568,80284.0,80283.0,0.0021689]
[1741887867517,0.00551068,80284.0,80283.0,0.2637419]
[1741887867954,0.000338,80285.0,80284.0,0.012455]
[1741887868642,0.249451,80285.0,80283.0,0.0041689]
[1741887868803,0.000338,80285.0,80283.0,0.0041689]
[1741887868984,0.000338,80285.0,80284.0,0.26157]
[1741887869184,0.000338,80285.0,80283.0,0.0051689]
[1741887869384,0.000338,80285.0,80284.0,0.006]
[1741887869623,0.000338,80285.0,80284.0,0.01]
[1741887870640,0.000338,80285.0,80284.0,0.004]
[1741887871056,0.000338,80285.0,80284.0,0.01]
[1741887871473,0.000338,80285.0,80284.0,0.004]
[1741887871768,0.249115,80284.0,80283.0,0.0001689]
[1741887871975,0.38335684,80284.0,80283.0,0.0001689]
[1741887872526,0.86361786,80284.0,80283.0,0.0001689]
[1741887872674,0.83129458,80284.0,80283.0,0.0001689]
[1741887872874,0.16650383,80284.0,80283.0,0.0001689]
[1741887873078,0.02295001,80284.0,80283.0,0.0126239]
[1741887873391,0.02295001,80284.0,80283.0,0.2617419]
[1741887873639,0.02295001,80284.0,80283.0,0.0001689]
[1741887873793,0.13215599,80284.0,80283.0,0.0001689]
[1741887874015,0.14825395,80284.0,80283.0,0.0001689]
[1741887874231,0.14825395,80284.0,80283.0,0.0021689]
[1741887874778,0.13579895,80284.0,80283.0,0.0001689]
[1741887875076,0.13679895,80284.0,80283.0,0.0011689]
[1741887875298,0.14825395,80284.0,80283.0,0.0011689]
[1741887875490,0.14825395,80284.0,80283.0,0.0001689]
[1741887875907,0.52735395,80284.0,80283.0,0.0011689]
[1741887876109,0.56342454,80284.0,80283.0,0.0011689]
[1741887877138,0.52579684,80284.0,80283.0,0.0001689]
[1741887877896,0.51334184,80284.0,80283.0,0.0001689]
[1741887878091,0.52579684,80284.0,80283.0,0.0001689]
[1741887878317,0.56339736,80284.0,80283.0,0.0001689]
[1741887878523,0.52579684,80284.0,80283.0,0.0001689]
[1741887879382,0.52679684,80284.0,80283.0,0.0001689]
[1741887879793,0.52579684,80284.0,80283.0,0.0001689]
[1741887880254,0.52679684,80284.0,80283.0,0.0001689]
[1741887883162,0.13524184,80284.0,80283.0,0.0001689]
[1741887883558,0.001,80284.0,80283.0,0.0001689]
[1741887883754,0.001,80284.0,80283.0,0.0126239]
[1741887884219,0.001,80284.0,80283.0,0.0001689]
[1741887884860,0.000338,80285.0,80283.0,0.0001689]
[1741887885258,0.001,80284.0,80283.0,0.0001689]
[1741887885979,0.250115,80284.0,80283.0,0.0001689]
[1741887886318,0.001,80284.0,80283.0,0.0001689]
[1741887886534,0.000338,80285.0,80283.0,0.2492869]
[1741887886745,0.000338,80285.0,80283.0,0.2502869]
[1741887887146,0.000338,80285.0,80284.0,0.012455]
[1741887888505,0.000338,80285.0,80284.0,0.014455]
[1741887888908,0.000338,80285.0,80284.0,0.012455]
[1741887889113,0.000338,80285.0,80284.0,0.014455]
[1741887889420,0.000338,80285.0,80284.0,0.090755]
[1741887890758,0.000338,80285.0,80284.0,0.093755]
[1741887892890,0.02324671,80285.0,80284.0,1.505]
[1741887893091,0.02324671,80285.0,80284.0,0.179695]
[1741887893957,0.02324671,80285.0,80284.0,0.16724]
[1741887894277,0.02324671,80285.0,80284.0,0.42881]
[1741887895269,0.02324671,80285.0,80284.0,0.005]
[1741887895625,0.02324671,80285.0,80284.0,0.26657]
[1741887898463,0.000338,80285.0,80284.0,0.26657]
[1741887900938,0.000338,80285.0,80284.0,0.005]
[1741887901908,0.24945,80285.0,80284.0,0.005]
[1741887902489,0.38160599,80285.0,80284.0,0.005]
[1741887902676,0.39614684,80285.0,80284.0,0.005]
[1741887902875,0.39614684,80285.0,80284.0,0.003]
[1741887903168,0.39588279,80285.0,80284.0,0.005]
[1741887903374,0.69588279,80285.0,80284.0,0.002]
[1741887903541,0.32699585,80284.0,80283.0,0.0001689]
[1741887903766,0.44669684,80284.0,80283.0,0.0001689]
[1741887904806,0.28451127,80285.0,80283.0,0.0001689]
[1741887904807,0.02294427,80285.0,80283.0,0.0001689]
[1741887905008,0.02294427,80285.0,80284.0,0.012455]
[1741887905253,7.395e-05,80285.0,80284.0,0.012455]
[1741887905668,7.395e-05,80285.0,80284.0,1.512455]
[1741887906376,7.395e-05,80285.0,80284.0,1.514455]
[1741887906577,7.395e-05,80285.0,80284.0,1.502]
[1741887906832,7.395e-05,80285.0,80284.0,1.512455]
[1741887907038,7.395e-05,80285.0,80284.0,1.504]
[1741887907249,0.24918595,80285.0,80284.0,1.504]
[1741887907458,7.395e-05,80285.0,80284.0,1.516455]
[1741887907655,7.395e-05,80285.0,80284.0,1.521455]
[1741887908290,7.395e-05,80285.0,80284.0,1.5]
[1741887908536,7.395e-05,80285.0,80284.0,0.005]
[1741887909167,0.13222994,80285.0,80284.0,0.008]
[1741887909383,0.44832796,80285.0,80284.0,0.008]
[1741887909584,0.44677079,80285.0,80284.0,0.008]
[1741887909764,0.44677079,80285.0,80284.0,0.01]
[1741887909899,0.57611085,80284.0,80283.0,0.0001689]
[1741887910099,0.69581184,80284.0,80283.0,9e-07]
[1741887910302,0.3,80280.0,80279.0,8e-07]
[1741887910502,0.44669784,80280.0,80279.0,8e-07]
[1741887910937,0.561626,80267.0,80266.0,0.000169]
[1741887911155,0.261668,80254.0,80250.0,0.000169]
[1741887911452,0.38136899,80254.0,80250.0,0.000169]
[1741887911649,0.249205,80256.0,80250.0,0.000169]
[1741887911970,0.249169,80267.0,80258.0,0.012459]
[1741887912135,0.249125,80281.0,80273.0,0.012457]
[1741887912364,7.395e-05,80285.0,80283.0,0.249116]
[1741887912580,0.249121,80283.0,80278.0,0.012456]
[1741887912821,0.249161,80270.0,80264.0,0.16344]
[1741887912981,0.012456,80279.0,80264.0,0.16344]
[1741887913179,0.249159,80270.0,80264.0,0.16344]
[1741887913477,0.249159,80270.0,80265.0,1.5]
[1741887913674,0.001,80267.0,80265.0,1.5]
[1741887913878,0.001,80267.0,80266.0,0.012458]
[1741887914283,0.001,80267.0,80264.0,0.16344]
[1741887914489,0.001,80267.0,80266.0,1.5]
[1741887915330,0.001,80267.0,80266.0,1.512458]
[1741887915709,0.001,80267.0,80266.0,1.5]
[1741887915912,0.0125408,80283.0,80276.0,0.012457]
[1741887916180,0.249099,80290.0,80277.0,0.249137]
[1741887916357,0.261587,80280.0,80266.0,1.502]
[1741887916552,0.249155,80272.0,80266.0,1.502]
[1741887916763,0.249134,80278.0,80272.0,0.261608]
[1741887917076,0.249162,80269.0,80266.0,1.502]
[1741887917482,0.012455,80283.0,80266.0,1.502]
[1741887917774,0.249147,80274.0,80269.0,0.012458]
[1741887917977,0.249134,80278.0,80272.0,0.261609]
[1741887918444,0.249142,80276.0,80271.0,0.012457]
[1741887918675,0.249143,80275.0,80269.0,0.261617]
[1741887918890,0.249143,80275.0,80266.0,1.502]
[1741887919532,0.249168,80267.0,80266.0,0.002]
[1741887919743,0.012457,80274.0,80259.0,0.176019]
[1741887920070,0.249174,80266.0,80260.0,0.012459]
[1741887920418,0.249174,80266.0,80261.0,0.012459]
[1741887920635,0.249182,80263.0,80259.0,0.012459]
[1741887920837,0.249171,80266.0,80260.0,0.261649]
[1741887921802,0.249171,80266.0,80247.0,0.01274819]
[1741887921803,0.249183,80262.0,80261.0,0.005]
[1741887922016,0.249183,80262.0,80261.0,0.003]
[1741887922469,0.261642,80262.0,80261.0,0.003]
[1741887922643,0.68134299,80262.0,80261.0,0.003]
[1741887922842,0.69588384,80262.0,80261.0,0.003]
[1741887923062,0.32699985,80261.0,80260.0,0.001]
[1741887923234,0.44670084,80261.0,80260.0,0.003]
[1741887923449,0.57120084,80261.0,80260.0,0.003]
[1741887923849,0.57120084,80261.0,80260.0,0.001]
[1741887924052,0.59407975,80261.0,80260.0,0.001]
[1741887924262,0.5670799,80261.0,80253.0,0.249378]
[1741887924460,0.5670799,80261.0,80260.0,0.261649]
[1741887924461,0.02287891,80261.0,80260.0,0.261649]
[1741887924664,0.02287891,80261.0,80258.0,0.0831]
[1741887924890,0.02287891,80261.0,80260.0,0.002]
[1741887925104,0.27206791,80261.0,80260.0,0.003]
[1741887925461,0.249189,80261.0,80260.0,0.003]
[1741887925993,0.249189,80261.0,80260.0,0.002]
[1741887926193,0.249208,80254.0,80253.0,0.000169]
[1741887926610,0.249196,80258.0,80253.0,0.000169]
[1741887926811,0.249199,80257.0,80253.0,0.000169]
[1741887927021,0.01246,80254.0,80253.0,0.000169]
[1741887927461,0.261652,80259.0,80253.0,0.000169]
[1741887927462,0.3,80260.0,80253.0,0.000169]
[1741887927650,0.02287443,80254.0,80253.0,0.004169]
[1741887927861,0.02287443,80254.0,80253.0,0.016629]
[1741887928077,0.02287443,80254.0,80253.0,0.061429]
[1741887928280,0.05261437,80254.0,80253.0,0.061429]
[1741887929094,0.05261437,80254.0,80253.0,0.000169]
[1741887929453,0.05261437,80254.0,80253.0,0.015629]
[1741887929655,0.05261437,80254.0,80253.0,0.004169]
[1741887929855,0.07095312,80254.0,80253.0,0.003169]
[1741887930054,0.07095312,80254.0,80253.0,0.000169]
[1741887930278,0.08341312,80254.0,80253.0,0.007169]
[1741887930685,0.07095312,80254.0,80253.0,0.007169]
[1741887930847,0.20311411,80254.0,80253.0,0.003169]
[1741887931040,0.62591411,80254.0,80253.0,0.003169]
[1741887931325,0.62591411,80254.0,80253.0,0.006169]
[1741887932078,0.62193806,80254.0,80253.0,0.006169]
[1741887932319,0.09775045,80254.0,80249.0,0.01127837]
[1741887932522,0.09775045,80254.0,80247.0,0.24923]
[1741887932873,0.09775045,80254.0,80249.0,0.0827]
[1741887933081,0.0892665,80254.0,80253.0,0.001]
[1741887933284,0.0892665,80254.0,80242.0,0.3321129]
[1741887933486,0.249211,80253.0,80244.0,0.261699]
[1741887933686,0.249238,80245.0,80242.0,1.5001689]
[1741887934070,0.261699,80245.0,80242.0,0.0001689]
[1741887934436,0.14209655,80244.0,80242.0,0.0001689]
[1741887934573,0.19139655,80244.0,80242.0,0.0001689]
[1741887934938,0.22114837,80244.0,80242.0,0.0001689]
[1741887935130,0.27910528,80244.0,80242.0,0.0001689]
[1741887935266,0.29177734,80244.0,80242.0,0.0001689]
[1741887935690,0.30631819,80244.0,80242.0,0.0001689]
[1741887935909,0.30631819,80244.0,80243.0,0.0011689]
[1741887936115,0.30631819,80244.0,80243.0,0.0001689]
[1741887936322,0.30631819,80244.0,80243.0,0.0031689]
[1741887936764,0.30631819,80244.0,80243.0,0.0021689]
[1741887937603,0.29177734,80244.0,80243.0,6.945e-05]
[1741887937799,0.24547734,80244.0,80243.0,6.945e-05]
[1741887938024,0.24847734,80244.0,80243.0,6.945e-05]
[1741887938227,0.56301819,80244.0,80243.0,6.945e-05]
[1741887938698,0.54470481,80244.0,80243.0,6.945e-05]
[1741887939090,0.54170481,80244.0,80243.0,6.945e-05]
[1741887939340,0.54470481,80244.0,80243.0,6.945e-05]
[1741887939729,0.09800197,80244.0,80243.0,6.945e-05]
[1741887939938,0.35370197,80244.0,80243.0,6.945e-05]
[1741887940292,0.47840296,80244.0,80243.0,6.945e-05]
[1741887940692,0.34324097,80244.0,80243.0,6.945e-05]
[1741887940893,0.09400197,80244.0,80243.0,6.945e-05]
[1741887941095,0.1123121,80244.0,80243.0,6.945e-05]
[1741887941298,0.05279742,80244.0,80243.0,0.01253145]
[1741887941527,0.30203642,80244.0,80243.0,6.945e-05]
[1741887941836,0.37401749,80244.0,80243.0,6.945e-05]
[1741887942050,0.88585933,80244.0,80243.0,6.945e-05]
[1741887942252,0.93115933,80244.0,80243.0,6.945e-05]
[1741887942549,0.9148492,80244.0,80243.0,6.945e-05]
[1741887942803,0.9128492,80244.0,80243.0,6.945e-05]
[1741887943210,0.9108492,80244.0,80243.0,0.00106945]
[1741887943338,0.9128492,80244.0,80243.0,0.00106945]
[1741887943544,0.9128492,80244.0,80243.0,6.945e-05]
[1741887943767,0.9108492,80244.0,80243.0,6.945e-05]
[1741887943973,0.9148492,80244.0,80243.0,6.945e-05]
[1741887944702,0.9188492,80244.0,80243.0,6.945e-05]
[1741887945444,0.9168492,80244.0,80243.0,6.945e-05]
[1741887945906,0.26174,80232.0,80231.0,0.01381415]
[1741887946108,0.38144099,80232.0,80231.0,0.01381415]
[1741887946325,0.38978029,80232.0,80231.0,0.01381415]
[1741887946503,0.55736815,80232.0,80231.0,0.01381415]
[1741887946709,0.85736815,80232.0,80231.0,0.01381415]
[1741887946909,0.94286676,80232.0,80231.0,0.01381415]
[1741887947151,0.9521443,80232.0,80231.0,0.01381415]
[1741887947354,0.60697,80223.0,80199.0,0.0001689]
[1741887947466,0.74121184,80223.0,80222.0,1e-06]
[1741887947674,0.261832,80204.0,80199.0,0.0001689]
[1741887947874,0.249364,80204.0,80199.0,0.0001689]
[1741887948112,0.38153299,80204.0,80199.0,0.0001689]
[1741887948318,0.12795436,80204.0,80199.0,0.0001689]
[1741887948516,0.240635,80204.0,80200.0,0.01557749]
[1741887948718,0.12093401,80204.0,80203.0,0.012468]
[1741887949091,0.12093401,80204.0,80203.0,0.058768]
[1741887949288,0.11268064,80204.0,80203.0,0.058768]
[1741887949526,0.11268064,80204.0,80203.0,0.0463]
[1741887949527,0.10486941,80204.0,80203.0,0.0463]
[1741887949806,0.11304596,80204.0,80203.0,0.058768]
[1741887950201,0.10486941,80204.0,80203.0,0.059768]
[1741887950431,0.10486941,80204.0,80203.0,0.25746899]
[1741887950671,0.10486941,80204.0,80203.0,0.1253]
[1741887950899,0.36240907,80204.0,80203.0,0.001]
[1741887951028,0.07913417,80204.0,80203.0,0.001]
[1741887951233,0.19883516,80204.0,80203.0,0.001]
[1741887951501,0.07913417,80204.0,80203.0,0.001]
[1741887951744,0.07913417,80204.0,80203.0,0.262835]
[1741887952002,0.07913417,80204.0,80203.0,0.261835]
[1741887952230,0.07095851,80204.0,80203.0,0.261835]
[1741887952455,0.07876868,80204.0,80203.0,0.002]
[1741887952668,0.07876868,80204.0,80203.0,0.01436854]
[1741887952877,0.07976868,80204.0,80200.0,0.00310949]
[1741887953089,0.08794434,80204.0,80200.0,0.00310949]
[1741887953291,0.08694434,80204.0,80203.0,0.001169]
[1741887953494,0.02742427,80204.0,80203.0,0.001169]
[1741887953761,0.02742427,80204.0,80203.0,0.000169]
[1741887954148,0.04571392,80204.0,80203.0,0.000169]
[1741887954754,0.17788291,80204.0,80203.0,0.000169]
[1741887954954,0.24046617,80204.0,80203.0,0.000169]
[1741887955363,0.25293417,80204.0,80203.0,0.000169]
[1741887956008,0.24046617,80204.0,80203.0,0.000169]
[1741887956183,0.24046617,80204.0,80203.0,0.001169]
[1741887956947,0.24046617,80204.0,80203.0,0.000169]
[1741887957148,0.24046617,80204.0,80203.0,0.001169]
[1741887957349,0.24146617,80204.0,80203.0,0.001169]
[1741887957550,0.25393417,80204.0,80203.0,0.001169]
[1741887957989,0.24146617,80204.0,80203.0,0.001169]
[1741887958391,0.25393417,80204.0,80203.0,0.001169]
[1741887958605,0.24146617,80204.0,80203.0,0.001169]
[1741887958812,0.233656,80204.0,80203.0,0.001169]
[1741887959011,0.246124,80204.0,80203.0,0.001169]
[1741887959410,0.23050213,80204.0,80203.0,0.001169]
[1741887959999,0.21803413,80204.0,80203.0,0.001169]
[1741887960203,0.09833314,80204.0,80203.0,0.013637]
[1741887960419,0.09833314,80204.0,80203.0,0.001169]
[1741887961873,0.09833314,80204.0,80203.0,0.000169]
[1741887962082,0.09733314,80204.0,80203.0,0.012637]
[1741887962285,0.09833314,80204.0,80203.0,0.012637]
[1741887962704,0.08915748,80204.0,80203.0,0.012637]
[1741887962908,0.08915748,80204.0,80203.0,0.000169]
[1741887963117,0.08915748,80204.0,80203.0,0.002169]
[1741887963527,0.08915748,80204.0,80200.0,0.04717849]
[1741887963528,0.33852348,80204.0,80200.0,0.04717849]
[1741887963709,0.249371,80202.0,80200.0,0.00077849]
[1741887963942,0.34666324,80204.0,80200.0,0.00077849]
[1741887964143,0.012468,80201.0,80200.0,0.00077849]
[1741887964325,0.05942939,80201.0,80200.0,0.00077849]
[1741887964727,0.06756915,80201.0,80200.0,0.00077849]
[1741887964961,0.09729724,80201.0,80200.0,0.01324649]
[1741887965133,0.09729724,80201.0,80200.0,0.00077849]
[1741887965342,0.34667024,80201.0,80200.0,0.00077849]
[1741887965902,0.46637123,80201.0,80200.0,0.00077849]
[1741887966306,0.09729724,80201.0,80200.0,0.00077849]
[1741887966525,0.09729724,80201.0,80200.0,0.26462249]
[1741887966940,0.08915748,80201.0,80200.0,0.00277849]
[1741887967136,0.45823147,80201.0,80200.0,0.00277849]